fUST/lending_fUST_20240828
["ID","MTS","AMOUNT","RATE_DAILY","PERIOD"]
[336400786,1724808690830,-873.83,0.00011506,2]
[336400787,1724808690857,-2996.06,0.00011506,2]
[336400788,1724808690884,-2271.8,0.00011506,2]
[336400789,1724808690912,-500.0,0.00011506,2]
[336400790,1724808690940,-432.6696748,0.0001163,2]
[336400791,1724808690964,-154.88676671,0.0001163,2]
[336400792,1724808690989,-7019.64469415,0.0001163,2]
[336400793,1724808691015,-154.92786283,0.0001163,2]
[336400794,1724808691040,-154.69833824,0.0001163,2]
[336400795,1724808691064,-1500.0,0.0001163,2]
[336400796,1724808691089,-154.69833824,0.0001163,2]
[336400797,1724808691113,-210.43217369,0.0001163,2]
[336400798,1724808691136,-3107.87768845,0.0001163,2]
[336400799,1724808691163,-500.0,0.0001178,2]
[336400800,1724808691192,-2912.2,0.0001178,2]
[336400801,1724808691216,-751.58,0.0001178,2]
[336400802,1724808691241,-2186.41,0.0001178,2]
[336400803,1724808691271,-595.86,0.0001178,2]
[336400804,1724808691298,-1367.06,0.0001178,2]
[336400805,1724808691327,-1229.05,0.0001178,2]
[336400806,1724808691352,-873.83,0.0001178,2]
[336400807,1724808691381,-2996.06,0.0001178,2]
[336400808,1724808691408,-2271.8,0.0001178,2]
[336400809,1724808691432,-500.0,0.0001178,2]
[336400810,1724808691456,-500.0,0.00011873,2]
[336400811,1724808691486,-319.0,0.00012053,2]
[336400812,1724808691511,-500.0,0.00012054,2]
[336400813,1724808691537,-2912.2,0.00012054,2]
[336400814,1724808691563,-751.58,0.00012054,2]
[336400815,1724808691588,-2186.41,0.00012054,2]
[336400816,1724808691613,-595.86,0.00012054,2]
[336400817,1724808691639,-1367.06,0.00012054,2]
[336400818,1724808691666,-1229.05,0.00012054,2]
[336400819,1724808691689,-873.83,0.00012054,2]
[336400820,1724808691715,-361.8810628,0.00012054,2]
[336401084,1724808854150,541.0,0.00025,120]
[336401262,1724808947553,570.72263189,0.00011506,10]
[336401764,1724809375303,1022.42704252,8.521e-05,2]
[336401765,1724809375336,764.98785823,8.521e-05,2]
[336401766,1724809375367,732.36093002,8.521e-05,2]
[336401767,1724809375399,1022.42704252,8.521e-05,2]
[336401797,1724809652141,-387.86717541,7.911e-05,2]
[336401798,1724809653123,-1756.87135171,7.911e-05,2]
[336401799,1724809653147,-300.0,8.52e-05,2]
[336401800,1724809653168,-300.0,8.52e-05,2]
[336401801,1724809653189,-2702.08420229,8.521e-05,2]
[336401803,1724809725361,-812.13034557,7.911e-05,2]
[336401804,1724809725395,-300.0,8.52e-05,2]
[336401806,1724809725431,-107.3369465,8.52e-05,2]
[336401807,1724809725470,-192.6630535,8.52e-05,2]
[336401808,1724809725501,-1026.80423857,8.521e-05,2]
[336401811,1724809750241,-300.0,8.52e-05,2]
[336401812,1724809750273,-968.24598375,8.521e-05,2]
[336401813,1724809750315,-449.31541962,8.521e-05,2]
[336401817,1724809763105,-778.24993317,7.954e-05,2]
[336401818,1724809763128,-163.43892032,8.521e-05,2]
[336401819,1724809763152,-3337.84810678,8.521e-05,2]
[336401820,1724809763172,-3703.70254968,8.521e-05,2]
[336401821,1724809763194,-189.4654011,8.521e-05,2]
[336401822,1724809763218,-407.10990391,8.521e-05,2]
[336401823,1724809763240,-301.82720385,8.521e-05,2]
[336401824,1724809763264,-24900.0,9.039e-05,2]
[336401825,1724809763287,-420.0,9.372e-05,2]
[336401826,1724809763313,-154.80301,9.524e-05,2]
[336401827,1724809763337,-250.0,9.621e-05,2]
[336401828,1724809763362,-250.0,9.647e-05,2]
[336401829,1724809763386,-250.0,9.673e-05,2]
[336401830,1724809763407,-250.0,9.7e-05,2]
[336401831,1724809763428,-250.0,9.726e-05,2]
[336401832,1724809763450,-250.0,9.753e-05,2]
[336401833,1724809763473,-250.0,9.779e-05,2]
[336401834,1724809763496,-250.0,9.805e-05,2]
[336401835,1724809763520,-250.0,9.832e-05,2]
[336401836,1724809763541,-250.0,9.858e-05,2]
[336401837,1724809763566,-250.0,9.884e-05,2]
[336401838,1724809763591,-1235.85150716,9.899e-05,2]
[336401839,1724809763611,-2715.06569498,9.899e-05,2]
[336401840,1724809763636,-250.0,9.911e-05,2]
[336401841,1724809763658,-250.0,9.937e-05,2]
[336401842,1724809763680,-1082.05168819,9.939e-05,2]
[336401843,1724809763700,-197.1186319,9.939e-05,2]
[336401844,1724809763724,-250.0,9.964e-05,2]
[336401845,1724809763748,-250.0,9.99e-05,2]
[336401846,1724809763769,-154.74467129,9.999e-05,2]
[336401847,1724809763791,-154.74467129,9.999e-05,2]
[336401848,1724809763814,-154.91089528,9.999e-05,2]
[336401849,1724809763834,-288.55434071,0.0001,2]
[336401850,1724809763860,-250.0,0.00010016,2]
[336401851,1724809763885,-250.0,0.00010043,2]
[336401852,1724809763911,-250.0,0.00010069,2]
[336401853,1724809763932,-811.90111383,0.00010081,2]
[336401854,1724809763952,-192.84600197,0.00010081,2]
[336401855,1724809763972,-30.87493047,0.00010081,2]
[336401856,1724809775077,-301.82720385,8.521e-05,2]
[336401857,1724809775115,-250.0,9.586e-05,2]
[336401858,1724809775149,-250.0,9.613e-05,2]
[336401859,1724809775183,-147.2392088,9.639e-05,2]
[336401862,1724809799978,-300.0,9.524e-05,2]
[336401908,1724809832637,-418.89313081,9.12e-05,2]
[336402089,1724809838876,-1259.41545977,8.861e-05,2]
[336402091,1724809838891,-1455.65023521,8.861e-05,2]
[336402092,1724809838903,-24481.10686919,9.12e-05,2]
[336402093,1724809838912,-102.7607912,9.639e-05,2]
[336402094,1724809838923,-250.0,9.665e-05,2]
[336402095,1724809838934,-250.0,9.692e-05,2]
[336402096,1724809838944,-250.0,9.718e-05,2]
[336402097,1724809838954,-250.0,9.744e-05,2]
[336402098,1724809838965,-250.0,9.77e-05,2]
[336402099,1724809838974,-250.0,9.797e-05,2]
[336402100,1724809838984,-250.0,9.823e-05,2]
[336402101,1724809838993,-250.0,9.849e-05,2]
[336402102,1724809839002,-250.0,9.876e-05,2]
[336402103,1724809839014,-250.0,9.902e-05,2]
[336402104,1724809839024,-250.0,9.928e-05,2]
[336402105,1724809839034,-811.90111383,9.939e-05,2]
[336402106,1724809839043,-250.0,9.955e-05,2]
[336402108,1724809839053,-250.0,9.981e-05,2]
[336402110,1724809839062,-160.07910487,9.999e-05,2]
[336402111,1724809839071,-192.07733895,9.999e-05,2]
[336402112,1724809839081,-570.89741758,9.999e-05,2]
[336402113,1724809839090,-154.82643979,9.999e-05,2]
[336402114,1724809839099,-250.0,0.00010007,2]
[336402115,1724809839109,-250.0,0.00010033,2]
[336402116,1724809839119,-250.0,0.0001006,2]
[336402117,1724809839129,-491.61687113,0.00010081,2]
[336402118,1724809839139,-154.69833824,0.00010081,2]
[336402119,1724809839148,-250.0,0.00010086,2]
[336402120,1724809839158,-404.8069796,0.0001026,2]
[336402121,1724809839168,-309.3593453,0.0001026,2]
[336402122,1724809839177,-169.53782457,0.0001026,2]
[336402123,1724809839187,-812.13034557,0.0001026,2]
[336402124,1724809839196,-167.0,0.00010309,2]
[336402125,1724809839206,-172.67904957,0.00010544,2]
[336402126,1724809839217,-154.93335267,0.00010544,2]
[336402127,1724809839227,-197.30212557,0.00010544,2]
[336402128,1724809839236,-899.64193172,0.00010544,2]
[336402129,1724809839246,-154.82633207,0.00010544,2]
[336402130,1724809839256,-160.59004346,0.00010739,2]
[336402131,1724809839267,-160.59004346,0.00010739,2]
[336402132,1724809839279,-213.81095274,0.00010739,2]
[336402133,1724809839289,-42449.47322548,0.00010739,2]
[336402134,1724809839300,-42449.47322548,0.00010739,2]
[336402135,1724809839310,-154.69833824,0.00010739,2]
[336402136,1724809839320,-154.84162022,0.00010739,2]
[336402137,1724809839330,-934.60967108,0.00010858,2]
[336402138,1724809839340,-1988.20940588,0.00010937,2]
[336402139,1724809839350,-154.69833824,0.00010958,2]
[336402140,1724809839362,-154.69833824,0.00010958,2]
[336402141,1724809839373,-544.51359376,0.00010958,2]
[336402142,1724809839383,-330.42205415,0.00010958,2]
[336402143,1724809839392,-500.95389653,0.00010958,2]
[336402144,1724809839401,-497.65115115,0.00010958,2]
[336402145,1724809839412,-505.1416754,0.00010958,2]
[336402146,1724809839423,-503.82339169,0.00010958,2]
[336402147,1724809839433,-500.0,0.00010958,2]
[336402148,1724809839444,-500.0,0.00010958,2]
[336402149,1724809839455,-503.36456395,0.00010958,2]
[336402150,1724809839469,-500.0,0.00010958,2]
[336402151,1724809839478,-468.82955975,0.00010958,2]
[336402152,1724809839488,-500.0,0.00010958,2]
[336402153,1724809839498,-506.02792091,0.00010958,2]
[336402154,1724809839510,-243.59694983,0.00010958,2]
[336402155,1724809839521,-249.97279881,0.00010958,2]
[336402156,1724809839530,-629.88036882,0.00010958,2]
[336402157,1724809839541,-500.0,0.00010958,2]
[336402158,1724809839551,-500.0,0.00010958,2]
[336402159,1724809839560,-500.0,0.00010958,2]
[336402160,1724809839570,-500.0,0.00010958,2]
[336402161,1724809839584,-505.72332352,0.00010958,2]
[336402162,1724809839594,-500.0,0.00010958,2]
[336402163,1724809839605,-501.37453362,0.00010958,2]
[336402164,1724809839614,-500.0,0.00010958,2]
[336402165,1724809839625,-502.13338644,0.00010958,2]
[336402166,1724809839636,-500.0,0.00010958,2]
[336402167,1724809839646,-503.45219033,0.00010958,2]
[336402168,1724809839659,-503.00000001,0.00010958,2]
[336402169,1724809839669,-500.0,0.00010958,2]
[336402170,1724809839679,-500.0,0.00010958,2]
[336402171,1724809839689,-297.28059702,0.00010958,2]
[336402172,1724809839700,-500.0,0.00010958,2]
[336402173,1724809839711,-501.95712292,0.00010958,2]
[336402174,1724809839727,-500.0,0.00010958,2]
[336402175,1724809839736,-502.27604871,0.00010958,2]
[336402176,1724809839745,-503.29847344,0.00010958,2]
[336402177,1724809839754,-513.62579405,0.00010958,2]
[336402178,1724809839764,-501.32974642,0.00010958,2]
[336402179,1724809839773,-503.30617454,0.00010958,2]
[336402180,1724809839783,-500.0,0.00010958,2]
[336402181,1724809839792,-500.0,0.00010958,2]
[336402182,1724809839802,-501.33802707,0.00010958,2]
[336402183,1724809839811,-500.0,0.00010958,2]
[336402184,1724809839821,-500.0,0.00010958,2]
[336402185,1724809839830,-503.68151862,0.00010958,2]
[336402186,1724809839840,-502.71161175,0.00010958,2]
[336402187,1724809839850,-500.0,0.00010958,2]
[336402188,1724809839859,-160.21415116,0.00010958,2]
[336402189,1724809839870,-502.4938907,0.00010958,2]
[336402190,1724809839880,-500.0,0.00010958,2]
[336402191,1724809839889,-501.21771706,0.00010958,2]
[336402192,1724809839899,-507.11129092,0.00010958,2]
[336402193,1724809839909,-501.39397568,0.00010958,2]
[336402194,1724809839920,-503.07377855,0.00010958,2]
[336402195,1724809840107,-504.87943074,0.00010958,2]
[336402196,1724809840119,-500.0,0.00010958,2]
[336402197,1724809840130,-500.0,0.00010958,2]
[336402198,1724809840139,-514.43676867,0.00010958,2]
[336402199,1724809840149,-503.44373853,0.00010958,2]
[336402200,1724809840159,-776.33,0.00010958,2]
[336402201,1724809840169,-503.6164352,0.00010958,2]
[336402202,1724809840179,-502.8708302,0.00010958,2]
[336402203,1724809840188,-502.69517344,0.00010958,2]
[336402204,1724809840198,-500.0,0.00010958,2]
[336402205,1724809840209,-501.31604962,0.00010958,2]
[336402206,1724809840220,-487.92973778,0.00010958,2]
[336402207,1724809840229,-501.22560487,0.00010958,2]
[336402208,1724809840238,-500.0,0.00010958,2]
[336402209,1724809840247,-500.0,0.00010958,2]
[336402210,1724809840257,-500.71122413,0.00010958,2]
[336402211,1724809840266,-501.17783791,0.00010958,2]
[336402212,1724809840275,-505.2204255,0.00010958,2]
[336402213,1724809840284,-380.98333313,0.00010958,2]
[336402214,1724809840294,-504.44102868,0.00010958,2]
[336402215,1724809840303,-500.0,0.00010958,2]
[336402217,1724809840313,-503.54793527,0.00010958,2]
[336402218,1724809840323,-505.65423736,0.00010958,2]
[336402219,1724809840333,-500.0,0.00010958,2]
[336402220,1724809840344,-503.60342846,0.00010958,2]
[336402221,1724809840354,-500.0,0.00010958,2]
[336402222,1724809840365,-500.0,0.00010958,2]
[336402223,1724809840375,-500.0,0.00010958,2]
[336402224,1724809840385,-501.36054009,0.00010958,2]
[336402225,1724809840394,-501.32064174,0.00010958,2]
[336402226,1724809840404,-500.0,0.00010958,2]
[336402227,1724809840413,-296.29036417,0.00010958,2]
[336402228,1724809840424,-500.0,0.00010958,2]
[336402229,1724809840433,-500.0,0.00010958,2]
[336402230,1724809840443,-500.0,0.00010958,2]
[336402231,1724809840454,-502.00061401,0.00010958,2]
[336402232,1724809840463,-502.81159877,0.00010958,2]
[336402234,1724809840476,-500.0,0.00010958,2]
[336402236,1724809840485,-500.0,0.00010958,2]
[336402238,1724809840494,-500.0,0.00010958,2]
[336402240,1724809840503,-502.27132604,0.00010958,2]
[336402242,1724809840512,-500.0,0.00010958,2]
[336402243,1724809840522,-504.68206752,0.00010958,2]
[336402244,1724809840531,-500.0,0.00010958,2]
[336402245,1724809840541,-500.0,0.00010958,2]
[336402246,1724809840551,-606.49082882,0.00010958,2]
[336402247,1724809840560,-500.0,0.00010958,2]
[336402248,1724809840570,-500.0,0.00010958,2]
[336402249,1724809840582,-500.0,0.00010958,2]
[336402250,1724809840591,-500.0,0.00010958,2]
[336402251,1724809840601,-500.0,0.00010958,2]
[336402252,1724809840611,-199.74633879,0.00010958,2]
[336402253,1724809840621,-500.0,0.00010958,2]
[336402255,1724809840630,-500.0,0.00010958,2]
[336402257,1724809840640,-500.0,0.00010958,2]
[336402259,1724809840650,-500.0,0.00010958,2]
[336402261,1724809840663,-500.0,0.00010958,2]
[336402263,1724809840673,-500.0,0.00010958,2]
[336402265,1724809840683,-500.0,0.00010958,2]
[336402266,1724809840693,-502.61032171,0.00010958,2]
[336402267,1724809840703,-500.0,0.00010958,2]
[336402268,1724809840713,-503.10608418,0.00010958,2]
[336402269,1724809840724,-500.98528648,0.00010958,2]
[336402270,1724809840733,-532.88189536,0.00010958,2]
[336402271,1724809840743,-505.98306788,0.00010958,2]
[336402272,1724809840754,-385.26929857,0.00010958,2]
[336402273,1724809840763,-500.0,0.00010958,2]
[336402274,1724809840773,-503.37847548,0.00010958,2]
[336402275,1724809840783,-505.75770627,0.00010958,2]
[336402276,1724809840792,-505.19569659,0.00010958,2]
[336402277,1724809840802,-506.13455368,0.00010958,2]
[336402278,1724809840814,-784.09,0.00010958,2]
[336402279,1724809840824,-500.0,0.00010958,2]
[336402280,1724809840833,-503.00182725,0.00010958,2]
[336402281,1724809840843,-500.0,0.00010958,2]
[336402282,1724809840853,-500.0,0.00010958,2]
[336402283,1724809840863,-507.70538282,0.00010958,2]
[336402284,1724809840874,-502.33010076,0.00010958,2]
[336402285,1724809840883,-568.65741703,0.00010958,2]
[336402286,1724809840893,-500.0,0.00010958,2]
[336402287,1724809840902,-500.0,0.00010958,2]
[336402288,1724809840911,-503.52680481,0.00010958,2]
[336402289,1724809840921,-501.58574082,0.00010958,2]
[336402290,1724809840930,-343.39314291,0.00010958,2]
[336402291,1724809840940,-500.0,0.00010958,2]
[336402292,1724809840949,-302.6741353,0.00010958,2]
[336402293,1724809840961,-500.0,0.00010958,2]
[336402294,1724809840973,-500.0,0.00010958,2]
[336402295,1724809840982,-504.31662439,0.00010958,2]
[336402296,1724809840992,-503.16061577,0.00010958,2]
[336402297,1724809841001,-504.47209406,0.00010958,2]
[336402298,1724809841012,-504.02081708,0.00010958,2]
[336402299,1724809841021,-407.81559044,0.00010958,2]
[336402300,1724809841031,-500.0,0.00010958,2]
[336402301,1724809841040,-2486.62,0.00010958,2]
[336402302,1724809841049,-506.21978238,0.00010958,2]
[336402303,1724809841058,-502.2377473,0.00010958,2]
[336402304,1724809841068,-500.0,0.00010958,2]
[336402305,1724809841078,-500.0,0.00010958,2]
[336402306,1724809841088,-500.0,0.00010958,2]
[336402307,1724809841098,-208.0648611,0.00010958,2]
[336402308,1724809841109,-454.72505578,0.00010958,2]
[336402309,1724809841118,-3252.89,0.00010958,2]
[336402310,1724809841127,-500.0,0.00010958,2]
[336402311,1724809841137,-504.01266837,0.00010958,2]
[336402312,1724809841149,-884.23,0.00010958,2]
[336402313,1724809841159,-500.0,0.00010958,2]
[336402314,1724809841169,-3186.09,0.00010958,2]
[336402315,1724809841180,-500.0,0.00010958,2]
[336402316,1724809841190,-502.09909623,0.00010958,2]
[336402317,1724809841200,-1414.92,0.00010958,2]
[336402318,1724809841209,-500.0,0.00010958,2]
[336402319,1724809841220,-192.01,0.00010958,2]
[336402320,1724809841230,-500.0,0.00010958,2]
[336402321,1724809841240,-500.0,0.00010958,2]
[336402322,1724809841251,-502.14516981,0.00010958,2]
[336402323,1724809841261,-500.0,0.00010958,2]
[336402324,1724809841271,-500.0,0.00010958,2]
[336402325,1724809841281,-500.0,0.00010958,2]
[336402326,1724809841292,-592.39,0.00010958,2]
[336402327,1724809841302,-500.0,0.00010958,2]
[336402328,1724809841314,-707.66,0.00010958,2]
[336402329,1724809841324,-503.55749981,0.00010958,2]
[336402330,1724809841335,-1231.22,0.00010958,2]
[336402331,1724809841345,-12896.74,0.00010958,2]
[336402332,1724809841355,-501.90053852,0.00010958,2]
[336402333,1724809841366,-507.06039095,0.00010958,2]
[336402334,1724809841376,-277.60824031,0.00010958,2]
[336402335,1724809841387,-500.0,0.00010958,2]
[336402336,1724809841398,-501.54013761,0.00010958,2]
[336402337,1724809841409,-500.0,0.00010958,2]
[336402338,1724809841418,-2309.3,0.00010958,2]
[336402339,1724809841427,-500.0,0.00010958,2]
[336402340,1724809841438,-500.0,0.00010958,2]
[336402341,1724809841447,-500.0,0.00010958,2]
[336402342,1724809841456,-502.84023413,0.00010958,2]
[336402343,1724809841467,-500.0,0.00010958,2]
[336402344,1724809841477,-2934.9,0.00010958,2]
[336402345,1724809841486,-500.0,0.00010958,2]
[336402346,1724809841495,-505.86614607,0.00010958,2]
[336402347,1724809841504,-501.93039559,0.00010958,2]
[336402348,1724809841514,-552.39303487,0.00010958,2]
[336402349,1724809841525,-500.0,0.00010958,2]
[336402350,1724809841537,-500.0,0.00010958,2]
[336402351,1724809841547,-500.0,0.00010958,2]
[336402352,1724809841557,-500.0,0.00010958,2]
[336402353,1724809841568,-509.99616876,0.00010958,2]
[336402354,1724809841579,-500.0,0.00010958,2]
[336402355,1724809841589,-500.0,0.00010958,2]
[336402356,1724809841598,-500.0,0.00010958,2]
[336402357,1724809841608,-504.18036154,0.00010958,2]
[336402358,1724809841619,-539.08323609,0.00010958,2]
[336402359,1724809841633,-500.0,0.00010958,2]
[336402360,1724809841644,-172.54865989,0.00010958,2]
[336402361,1724809841656,-524.89587968,0.00010958,2]
[336402362,1724809841666,-886.73,0.00010958,2]
[336402363,1724809841677,-519.49357659,0.00010958,2]
[336402364,1724809841686,-500.0,0.00010958,2]
[336402365,1724809841698,-500.0,0.00010958,2]
[336402366,1724809841708,-500.0,0.00010958,2]
[336402367,1724809841720,-500.0,0.00010958,2]
[336402368,1724809841731,-519.22982617,0.00010958,2]
[336402369,1724809841740,-500.0,0.00010958,2]
[336402370,1724809841751,-500.0,0.00010958,2]
[336402371,1724809841761,-500.0,0.00010958,2]
[336402372,1724809841771,-500.0,0.00010958,2]
[336402373,1724809841781,-500.0,0.00010958,2]
[336402374,1724809841791,-500.0,0.00010958,2]
[336402375,1724809841800,-500.0,0.00010958,2]
[336402376,1724809841810,-500.0,0.00010958,2]
[336402377,1724809841821,-500.0,0.00010958,2]
[336402378,1724809841830,-500.0,0.00010958,2]
[336402379,1724809841841,-505.29023737,0.00010958,2]
[336402380,1724809841851,-500.0,0.00010958,2]
[336402381,1724809841860,-500.0,0.00010958,2]
[336402382,1724809841870,-692.22,0.00010958,2]
[336402383,1724809841880,-500.0,0.00010958,2]
[336402384,1724809841889,-500.0,0.00010958,2]
[336402385,1724809841899,-504.38795993,0.00010958,2]
[336402386,1724809841910,-500.0,0.00010958,2]
[336402387,1724809841919,-500.0,0.00010958,2]
[336402388,1724809841929,-501.16265255,0.00010958,2]
[336402389,1724809841938,-500.0,0.00010958,2]
[336402390,1724809841948,-503.66708578,0.00010958,2]
[336402391,1724809841958,-637.06,0.00010958,2]
[336402392,1724809841970,-504.064961,0.00010958,2]
[336402393,1724809841980,-7039.88,0.00010958,2]
[336402394,1724809841989,-442.86706198,0.00010958,2]
[336402395,1724809842000,-500.0,0.00010958,2]
[336402396,1724809842009,-500.0,0.00010958,2]
[336402397,1724809842019,-500.0,0.00010958,2]
[336402398,1724809842029,-500.0,0.00010958,2]
[336402399,1724809842038,-503.0205231,0.00010958,2]
[336402400,1724809842048,-500.0,0.00010958,2]
[336402401,1724809842057,-2645.59,0.00010958,2]
[336402402,1724809842067,-500.0,0.00010958,2]
[336402403,1724809842076,-500.0,0.00010958,2]
[336402404,1724809842086,-500.0,0.00010958,2]
[336402405,1724809842095,-504.09594029,0.00010958,2]
[336402406,1724809842105,-1109.51,0.00010958,2]
[336402407,1724809842115,-500.0,0.00010958,2]
[336402408,1724809842124,-547.08801915,0.00010958,2]
[336402409,1724809842134,-2873.62,0.00010958,2]
[336402410,1724809842144,-500.0,0.00010958,2]
[336402411,1724809842153,-157.93737542,0.00010958,2]
[336402412,1724809842163,-500.0,0.00010958,2]
[336402413,1724809842174,-222.59866188,0.00010958,2]
[336402414,1724809842183,-436.56,0.00010958,2]
[336402415,1724809842194,-3124.26,0.00010958,2]
[336402416,1724809842203,-500.0,0.00010958,2]
[336402417,1724809842213,-500.0,0.00010958,2]
[336402418,1724809842227,-501.97120277,0.00010958,2]
[336402419,1724809842237,-500.0,0.00010958,2]
[336402420,1724809842248,-513.43859334,0.00010958,2]
[336402421,1724809842260,-500.0,0.00010958,2]
[336402422,1724809842269,-562.16,0.00010958,2]
[336402423,1724809842279,-562.16,0.00010958,2]
[336402424,1724809842290,-562.16,0.00010958,2]
[336402425,1724809842302,-562.16,0.00010958,2]
[336402426,1724809842312,-562.16,0.00010958,2]
[336402427,1724809842322,-555.76046044,0.00010958,2]
[336402428,1724809842332,-500.0,0.00010958,2]
[336402429,1724809842342,-516.15936013,0.00010958,2]
[336402430,1724809842354,-500.0,0.00010958,2]
[336402431,1724809842365,-500.0,0.00010958,2]
[336402432,1724809842376,-500.0,0.00010958,2]
[336402433,1724809842386,-500.0,0.00010958,2]
[336402434,1724809842396,-527.32211411,0.00010958,2]
[336402435,1724809842406,-500.0,0.00010958,2]
[336402436,1724809842416,-983.27,0.00010958,2]
[336402437,1724809842426,-500.0,0.00010958,2]
[336402438,1724809842436,-520.89325567,0.00010958,2]
[336402439,1724809842448,-600.6,0.00010958,2]
[336402440,1724809842459,-500.0,0.00010958,2]
[336402441,1724809842471,-2548.25,0.00010958,2]
[336402442,1724809842483,-388.68770198,0.00010958,2]
[336402443,1724809842494,-4039.69,0.00010958,2]
[336402444,1724809842505,-189.98451,0.00010959,2]
[336402445,1724809842516,-155.0,0.00010973,2]
[336402446,1724809842527,-500.28441974,0.00010973,2]
[336402447,1724809842538,-500.0,0.00010973,2]
[336402448,1724809842549,-4341.18797668,0.00011132,2]
[336402449,1724809842559,-261.45273816,0.0001123,2]
[336402450,1724809842568,-505.84970763,0.0001123,2]
[336402451,1724809842579,-562.16,0.0001123,2]
[336402452,1724809842591,-562.16,0.00011231,2]
[336402453,1724809842602,-562.16,0.00011231,2]
[336402454,1724809842612,-542.38439274,0.00011232,2]
[336402455,1724809842623,-186.29277964,0.00011232,2]
[336402456,1724809842632,-321.68037138,0.00011232,2]
[336402457,1724809842642,-506.18138611,0.00011232,2]
[336402458,1724809842653,-505.19511547,0.00011232,2]
[336402459,1724809842664,-604.02199248,0.00011232,2]
[336402460,1724809842675,-505.08217843,0.00011232,2]
[336402461,1724809842685,-500.0,0.00011232,2]
[336402462,1724809842697,-295.62634926,0.00011232,2]
[336402463,1724809842708,-504.98777393,0.00011232,2]
[336402464,1724809842721,-502.77020799,0.00011232,2]
[336402465,1724809842730,-500.0,0.00011232,2]
[336402466,1724809842740,-159.71924606,0.00011232,2]
[336402467,1724809842750,-500.0,0.00011232,2]
[336402468,1724809842760,-502.64264311,0.00011232,2]
[336402469,1724809842769,-500.0,0.00011232,2]
[336402470,1724809842778,-633.00961431,0.00011232,2]
[336402471,1724809842788,-500.0,0.00011232,2]
[336402472,1724809842798,-503.14657419,0.00011232,2]
[336402473,1724809842809,-501.90842142,0.00011232,2]
[336402474,1724809842820,-500.0,0.00011232,2]
[336402475,1724809842830,-776.33,0.00011232,2]
[336402476,1724809842839,-500.0,0.00011232,2]
[336402477,1724809842849,-500.0,0.00011232,2]
[336402478,1724809842859,-500.0,0.00011232,2]
[336402479,1724809842869,-500.0,0.00011232,2]
[336402480,1724809842878,-502.17748487,0.00011232,2]
[336402481,1724809842888,-500.0,0.00011232,2]
[336402482,1724809842897,-425.48,0.00011232,2]
[336402483,1724809842907,-500.0,0.00011232,2]
[336402484,1724809842917,-500.0,0.00011232,2]
[336402485,1724809842927,-626.53211972,0.00011232,2]
[336402486,1724809842936,-503.49908894,0.00011232,2]
[336402487,1724809842946,-500.0,0.00011232,2]
[336402488,1724809842955,-500.0,0.00011232,2]
[336402489,1724809842965,-500.0,0.00011232,2]
[336402490,1724809842984,-500.0,0.00011232,2]
[336402491,1724809842996,-356.40629891,0.00011232,2]
[336402492,1724809843006,-504.6696517,0.00011232,2]
[336402493,1724809843018,-500.0,0.00011232,2]
[336402494,1724809843028,-500.0,0.00011232,2]
[336402495,1724809843038,-502.979742,0.00011232,2]
[336402496,1724809843048,-500.0,0.00011232,2]
[336402497,1724809843058,-502.29434108,0.00011232,2]
[336402498,1724809843068,-500.0,0.00011232,2]
[336402499,1724809843079,-503.07554724,0.00011232,2]
[336402500,1724809843090,-500.0,0.00011232,2]
[336402501,1724809843101,-500.0,0.00011232,2]
[336402502,1724809843111,-500.0,0.00011232,2]
[336402503,1724809843121,-500.0,0.00011232,2]
[336402504,1724809843131,-500.0,0.00011232,2]